bitfinex-derivatives/quotes_ETHF0:USTF0_20260128
["timestamp","ask_amount","ask_price","bid_price","bid_amount"]
[1769610907612,3.53096825,3032.3,3030.8,3.44668365]
[1769610908009,3.53096825,3032.3,3030.6,3.91200157]
[1769610908213,3.53096825,3032.3,3030.6,3.44668365]
[1769610908414,3.53096825,3032.3,3030.7,3.44668365]
[1769610908716,3.53096825,3032.3,3030.7,7.35868522]
[1769610909107,3.53096825,3032.3,3030.9,3.44668365]
[1769610909306,0.00365173,3032.3,3031.0,3.44668365]
[1769610909604,3.53096825,3032.3,3030.8,3.91200157]
[1769610909807,0.00365173,3032.3,3031.0,3.44668365]
[1769610910113,3.53096825,3032.3,3030.9,3.91200157]
[1769610910314,3.53096825,3032.3,3030.8,7.35868522]
[1769610910510,0.00365173,3032.3,3031.4,3.44668365]
[1769610910711,3.52731652,3033.1,3031.5,3.44668365]
[1769610911009,3.52731652,3033.1,3030.4,8.28747173]
[1769610911010,3.52731652,3033.5,3031.9,3.44668365]
[1769610911209,3.52731652,3033.5,3032.2,3.44668365]
[1769610911718,3.52731652,3033.5,3032.2,7.35868522]
[1769610911917,0.00330364,3033.5,3032.4,3.44668365]
[1769610912114,40.8,3033.7,3032.4,3.44668365]
[1769610913013,40.8,3033.7,3032.5,3.44668365]
[1769610913323,3.52731652,3034.3,3032.9,3.44668365]
[1769610913617,3.52731652,3034.1,3032.7,3.91200157]
[1769610913815,3.52731652,3034.1,3032.7,7.35868522]
[1769610914204,3.5306363,3034.1,3032.7,3.44668365]
[1769610914412,3.5306363,3034.1,3032.5,3.91200157]
[1769610914611,3.5306363,3034.1,3032.7,3.44668365]
[1769610914815,3.5306363,3034.1,3032.8,3.44668365]
[1769610915305,3.5306363,3034.1,3032.6,3.91200157]
[1769610915512,3.5306363,3034.1,3032.5,3.91200157]
[1769610916017,3.5306363,3034.1,3032.5,7.35868522]
[1769610916418,3.52731652,3033.9,3032.4,3.91200157]
[1769610916713,3.69237652,3033.5,3032.2,0.00397624]
[1769610917308,3.52731652,3033.0,3031.7,3.91200157]
[1769610917507,4.87147173,3033.8,3031.3,3.91200157]
[1769610917508,3.52731652,3032.7,3031.3,3.91200157]
[1769610917708,3.52731652,3032.7,3031.2,7.35868522]
[1769610918010,3.52731652,3033.1,3031.4,3.44668365]
[1769610918217,3.69238652,3033.4,3031.6,3.44668365]
[1769610918418,3.69238652,3033.4,3031.8,3.44668365]
[1769610918816,3.69238652,3033.4,3031.6,3.91433115]
[1769610919009,3.69238652,3033.4,3031.6,7.3610148]
[1769610919214,3.52731652,3033.2,3031.7,3.44668365]
[1769610919717,3.52731652,3033.2,3031.8,3.44668365]
[1769610920828,3.52731652,3033.2,3031.9,3.44668365]
[1769610921322,3.52731652,3033.6,3032.2,7.35868522]
[1769610921517,3.52731652,3033.6,3032.3,3.44668365]
[1769610921709,3.52731652,3033.6,3032.1,3.91200157]
[1769610921913,3.52731652,3033.4,3032.0,3.91200157]
[1769610922111,3.52731652,3034.2,3032.0,7.52382522]
[1769610922319,0.16502,3034.3,3032.4,3.44668365]
[1769610922320,3.5306363,3034.1,3032.4,3.44668365]
[1769610922727,3.52731652,3033.9,3032.4,3.44668365]
[1769610924126,3.52731652,3033.9,3032.3,3.91200157]
[1769610924313,3.52731652,3033.9,3032.3,3.44668365]
[1769610924513,3.52731652,3033.9,3032.4,3.44668365]
[1769610925118,3.52731652,3033.9,3032.5,3.50799265]
[1769610925423,40.8,3034.0,3032.7,3.50799265]
[1769610925624,0.00331978,3034.1,3033.0,3.50799265]
[1769610925826,3.50601127,3034.7,3033.2,3.50799265]
[1769610926024,40.8,3034.6,3033.2,3.50799265]
[1769610926732,3.69733767,3034.5,3032.9,3.91200157]
[1769610926923,3.86570846,3034.5,3032.8,3.91200157]
[1769610927124,3.86570846,3034.5,3032.6,3.91200157]
[1769610927532,3.86570846,3034.5,3032.7,3.56595158]
[1769610927831,3.86570846,3034.5,3032.8,3.56595158]
[1769610928025,3.70069846,3034.5,3033.1,3.56595158]
[1769610928727,3.70069846,3034.5,3032.9,3.91200157]
[1769610929228,3.70069846,3034.5,3032.7,7.47795315]
[1769610929530,3.69733767,3033.9,3032.6,3.91200157]
[1769610929733,3.69733767,3033.9,3032.6,3.56595158]
[1769610930320,3.69733767,3033.9,3032.2,3.91200157]
[1769610930626,3.69733767,3033.9,3032.0,3.91200157]
[1769610930828,7.734,3034.4,3031.6,0.00232958]
[1769610930829,3.86243767,3032.8,3031.6,0.00232958]
[1769610931532,3.69733767,3032.6,3031.6,0.00232958]
[1769610932031,3.69733767,3032.6,3031.0,3.56595158]
[1769610932730,3.69733767,3032.6,3031.1,3.56595158]
[1769610933032,3.69733767,3032.6,3031.3,3.56595158]
[1769610933435,3.69733767,3032.6,3031.4,3.56595158]
[1769610934233,3.69733767,3032.6,3031.1,3.9155458]
[1769610934525,44.49733767,3032.6,3031.2,3.56595158]
[1769610934732,40.8,3032.6,3031.3,3.56595158]
[1769610935225,3.86241767,3033.1,3031.2,3.91200157]
[1769610935226,3.69733767,3033.1,3031.6,3.56595158]
[1769610935630,3.69733767,3032.9,3031.6,3.56595158]
[1769610936025,3.86242767,3032.9,3031.2,3.91200157]
[1769610936233,3.69733767,3032.7,3031.1,3.9155458]
[1769610936632,3.69733767,3032.4,3031.1,0.00354423]
[1769610936823,3.69733767,3032.2,3031.1,0.00354423]
[1769610937028,3.70027014,3032.2,3031.1,0.00354423]
[1769610938229,3.86540014,3032.2,3031.1,0.00354423]
[1769610938434,3.70027014,3032.2,3030.6,3.56595158]
[1769610939326,3.70027014,3032.2,3030.7,3.56595158]
[1769610940229,3.70027014,3032.2,3030.6,0.00297194]
[1769610940625,3.70027014,3032.2,3030.6,7.48092509]
[1769610940832,3.70027014,3032.2,3030.7,3.56595158]
[1769610941141,40.8,3032.1,3030.7,3.56595158]
[1769610941335,44.49733767,3032.1,3030.7,3.56595158]
[1769610941535,0.00293247,3032.2,3030.7,7.47795315]
[1769610941735,0.00293247,3032.2,3031.0,3.56595158]
[1769610942136,0.00293247,3032.2,3031.0,7.47795315]
[1769610942344,3.69733767,3033.5,3031.6,3.56595158]
[1769610942632,3.69733767,3033.5,3031.9,3.56595158]
[1769610942835,3.69733767,3033.5,3032.0,3.56595158]
[1769610943033,3.69733767,3033.5,3032.1,3.56595158]
[1769610943235,3.70152989,3033.5,3032.2,3.56595158]
[1769610943635,0.00419222,3033.5,3032.3,3.56595158]
[1769610943834,3.69733767,3034.8,3032.7,3.91200157]
[1769610944037,3.69733767,3034.8,3033.0,3.56595158]
[1769610944237,3.69733767,3034.6,3033.0,3.56595158]
[1769610944748,3.69733767,3034.6,3033.2,3.56595158]
[1769610945045,3.70119183,3034.6,3033.2,3.56595158]
[1769610945341,0.00385416,3034.6,3033.2,3.56595158]
[1769610945545,3.69733767,3035.7,3033.9,3.56595158]
[1769610945746,3.69733767,3035.7,3033.9,10.91795315]
[1769610945935,3.69733767,3035.7,3033.6,4.89000196]
[1769610945936,3.69733767,3035.5,3033.7,3.91200157]
[1769610946135,3.69733767,3035.5,3033.4,3.91200157]
[1769610946346,3.69733767,3035.5,3033.3,3.91200157]
[1769610946539,3.69733767,3035.4,3033.3,3.91200157]
[1769610946846,3.69733767,3035.4,3033.3,7.47795315]
[1769610947040,3.69733767,3035.2,3033.3,3.56595158]
[1769610947639,3.69733767,3035.0,3033.3,3.56595158]
[1769610947840,3.69733767,3035.4,3033.5,3.56595158]
[1769610948136,3.69733767,3035.4,3033.7,3.56595158]
[1769610948337,0.00401126,3035.5,3033.7,3.56595158]
[1769610948540,0.00401126,3035.5,3034.0,3.56595158]
[1769610948736,0.00401126,3035.5,3034.1,3.56595158]
[1769610949243,3.69733767,3036.5,3034.4,0.16501]
[1769610949446,8.37361479,3037.8,3034.9,3.56595158]
[1769610949447,3.69733767,3036.9,3034.9,3.56595158]
[1769610949738,3.69733767,3036.9,3035.1,3.56595158]
[1769610950340,3.70153186,3036.9,3035.1,3.57011828]
[1769610950644,3.70153186,3036.9,3035.2,3.56595158]
[1769610951349,0.00419419,3036.9,3035.4,3.56595158]
[1769610951550,3.69733767,3037.3,3035.4,3.56595158]
[1769610951948,3.69733767,3037.1,3035.4,7.01595158]
[1769610952256,3.69733767,3037.1,3035.4,3.56595158]
[1769610952452,3.69733767,3036.9,3035.1,0.0041667]
[1769610952748,3.69733767,3036.6,3035.1,0.0041667]
[1769610954038,3.69733767,3036.6,3035.1,3.57011828]
[1769610955247,3.69733767,3036.6,3035.1,0.0041667]
[1769610955448,3.69733767,3036.6,3035.1,3.61253932]
[1769610956048,3.69733767,3036.6,3035.1,0.0041667]
[1769610956449,3.60020823,3036.0,3034.3,3.60837262]
[1769610957443,3.60020823,3035.6,3034.3,0.00251025]
[1769610958050,3.60020823,3035.6,3034.3,3.61088287]
[1769610958443,44.40020823,3035.9,3034.3,3.61088287]
[1769610958649,3.60020823,3035.8,3034.3,3.61088287]
[1769610960453,3.60020823,3035.8,3034.3,0.00251025]
[1769610960850,3.60020823,3035.1,3033.5,3.60837262]
[1769610961246,7.785,3035.7,3033.1,3.60837262]
[1769610961247,0.165,3034.7,3033.1,3.60837262]
[1769610961448,3.60020823,3034.6,3033.1,3.60837262]
[1769610961847,3.60281964,3034.6,3033.1,3.61232205]
[1769610962153,0.00261141,3034.6,3033.1,3.61232205]
[1769610962457,3.60281964,3034.6,3033.1,3.61232205]
[1769610962958,3.60281964,3034.6,3033.1,0.00394943]
[1769610963157,3.60020823,3034.4,3033.1,0.00394943]
[1769610963346,3.76522823,3034.4,3033.1,0.00394943]
[1769610963550,3.60020823,3034.2,3033.1,0.00394943]
[1769610963749,3.60020823,3034.2,3032.6,3.60837262]
[1769610964355,3.60020823,3033.4,3031.9,3.60837262]
[1769610964748,3.76527823,3033.4,3031.9,0.00386286]
[1769610964957,3.60020823,3033.0,3030.9,3.60837262]
[1769610965754,3.76529823,3033.0,3030.9,3.60837262]
[1769610965951,3.76529823,3033.0,3030.9,3.61220614]
[1769610966147,3.60020823,3033.0,3030.9,3.61220614]
[1769610966350,3.60020823,3033.0,3031.2,3.60837262]
[1769610966661,3.60020823,3033.7,3031.4,3.60837262]
[1769610966960,3.60020823,3033.1,3031.0,3.60837262]
[1769610967354,3.76528823,3033.1,3031.0,3.60837262]
[1769610969054,3.60020823,3032.9,3031.0,3.60837262]
[1769610969458,3.76529823,3032.9,3031.0,3.60837262]
[1769610969756,3.60020823,3032.1,3030.9,0.00383352]
[1769610970063,3.60020823,3032.1,3030.3,3.60837262]
[1769610970957,3.60020823,3031.5,3029.6,0.61909172]
[1769610971154,3.60020823,3031.5,3030.2,0.00273933]
[1769610971859,3.76537823,3031.5,3029.6,4.22746434]
[1769610972058,0.16517,3031.4,3029.6,4.22746434]
[1769610972250,3.60020823,3030.6,3029.6,0.60653479]
[1769610972451,3.60020823,3030.6,3028.3,3.60837262]
[1769610972659,3.76542823,3030.6,3028.3,3.60837262]
[1769610972860,3.60020823,3030.6,3028.3,3.60837262]
[1769610973158,2.121,3031.0,3028.3,3.60837262]
[1769610973159,3.60020823,3030.3,3028.3,3.60837262]
[1769610973361,3.76547823,3029.8,3027.7,3.60837262]
[1769610973558,3.60020823,3029.7,3027.7,3.60837262]
[1769610974558,40.8,3029.6,3027.7,3.60837262]
[1769610974761,0.00414828,3029.6,3027.9,3.60837262]
[1769610976164,3.60435651,3029.6,3027.9,3.60837262]
[1769610976665,0.00414828,3029.6,3027.9,3.60837262]
[1769610977556,3.60435651,3029.6,3027.9,3.60837262]
[1769610978763,0.16528,3029.5,3027.7,0.00254864]
[1769610978961,3.60020823,3029.2,3027.7,0.00254864]
[1769610979261,3.60020823,3028.9,3026.8,3.60837262]
[1769610980266,3.60020823,3028.9,3026.8,3.61147959]
[1769610980471,3.60020823,3028.8,3026.8,3.61147959]
[1769610980672,3.60020823,3028.4,3026.8,0.00310697]
[1769610980969,3.76554823,3028.4,3026.8,0.00310697]
[1769610981880,40.8,3028.3,3026.8,3.61147959]
[1769610982167,3.60020823,3028.6,3026.8,3.61147959]
[1769610982572,3.60020823,3028.3,3026.0,3.60837262]
[1769610983368,3.60020823,3027.9,3025.5,6.91237262]
[1769610983568,3.60020823,3027.7,3025.6,3.60837262]
[1769610983770,3.60020823,3027.7,3025.6,3.61199918]
[1769610984172,3.60020823,3027.5,3025.6,3.61199918]
[1769610985472,3.76559823,3027.5,3025.6,0.00362656]
[1769610985663,3.65103742,3027.2,3025.6,0.00362656]
[1769610985865,3.65384336,3027.2,3025.6,0.00362656]
[1769610986179,3.65384336,3027.2,3025.6,3.69798638]
[1769610986180,0.00280594,3027.2,3025.6,3.69798638]
[1769610986972,0.00280594,3027.2,3025.8,3.53536333]
[1769610987976,0.00280594,3027.2,3025.8,3.70084333]
[1769610988176,3.54037626,3028.0,3026.2,3.53536333]
[1769610988480,6.61364366,3030.3,3027.0,3.53536333]
[1769610988481,3.54037626,3029.1,3027.0,3.53536333]
[1769610988671,3.54037626,3028.9,3027.0,3.53536333]
[1769610989177,3.54037626,3028.9,3025.8,0.05750783]
[1769610989178,3.54037626,3029.3,3027.5,3.53536333]
[1769610989677,3.54037626,3029.1,3027.5,3.53536333]
[1769610990581,40.8,3029.2,3027.5,3.70075333]
[1769610990772,0.00416065,3029.3,3027.7,3.53536333]
[1769610991079,5.65014,3032.1,3026.9,1.939]
[1769610991080,3.54037626,3030.3,3028.5,3.53536333]
[1769610991272,3.54037626,3030.7,3028.8,3.70068333]
[1769610991979,3.54316818,3030.7,3028.8,3.70387629]
[1769610992276,0.00279192,3030.7,3029.2,3.53536333]
[1769610993390,0.00279192,3030.7,3029.5,3.53536333]
[1769610993678,0.00279192,3030.7,3029.5,3.70064333]
[1769610993867,3.54316818,3030.7,3029.0,3.53536333]
[1769610994071,40.8,3030.6,3029.0,3.53536333]
[1769610994978,3.54316818,3030.7,3029.0,3.53536333]
[1769610995479,44.34316818,3030.7,3029.0,3.53536333]
[1769610996871,44.34316818,3030.7,3028.8,0.00319296]
[1769610996872,0.00279192,3030.7,3029.2,3.53536333]
[1769610997376,3.54316818,3030.7,3029.2,3.53536333]
[1769610998077,0.00279192,3030.7,3029.2,3.53536333]
[1769610999271,0.00279192,3030.7,3029.2,3.70065333]
[1769611001390,3.54316818,3030.7,3029.2,3.53536333]
[1769611002381,3.54316818,3030.7,3028.8,3.53855629]
[1769611003690,3.70837818,3030.7,3028.8,3.53855629]
[1769611004086,40.8,3030.6,3028.8,3.53855629]
[1769611004289,3.54037626,3030.5,3028.8,3.53855629]
[1769611004583,3.54037626,3030.3,3028.8,0.00319296]
[1769611004780,3.54037626,3030.3,3028.8,3.53855629]
[1769611006775,0.00279192,3030.7,3029.3,3.53536333]
[1769611006980,3.54037626,3031.6,3029.7,3.53536333]
[1769611007186,40.8,3031.5,3029.7,3.70063333]
[1769611007489,3.54037626,3031.4,3029.9,3.53536333]
[1769611007984,3.54466539,3031.4,3029.9,3.53536333]
[1769611008480,3.54037626,3032.2,3030.3,3.53536333]
[1769611009186,3.54037626,3032.2,3030.6,3.53536333]
[1769611009481,3.54323693,3032.2,3030.6,3.53536333]
[1769611009690,3.54037626,3031.8,3030.0,3.53536333]
[1769611010394,3.70555626,3031.4,3029.5,3.53536333]
[1769611010583,3.54037626,3031.0,3029.4,3.305]
[1769611011489,3.54037626,3031.6,3029.5,3.53536333]
[1769611012089,3.54037626,3031.6,3029.5,3.70064333]
[1769611012586,3.54037626,3031.6,3029.7,3.53536333]
[1769611013083,3.54037626,3031.0,3029.3,3.53536333]
[1769611013285,3.70558626,3030.8,3029.1,3.305]
[1769611014082,3.54037626,3030.8,3029.2,3.53536333]
[1769611014293,3.54037626,3030.6,3029.2,3.53536333]
[1769611016688,3.61737476,3031.0,3029.2,3.70065333]
[1769611016888,40.8,3030.9,3029.2,3.70065333]
[1769611017093,40.8,3030.9,3029.3,3.63698831]
[1769611017290,40.8,3030.9,3029.4,3.63698831]
[1769611017489,3.61737476,3031.0,3029.4,3.63698831]
[1769611018188,3.61737476,3031.0,3029.5,3.63698831]
[1769611018688,44.41737476,3030.9,3029.5,3.63698831]
[1769611019088,3.61737476,3030.8,3029.5,3.63698831]
[1769611019296,3.61737476,3030.8,3029.5,7.51356221]
[1769611019484,3.61737476,3030.8,3029.3,3.8765739]
[1769611019690,3.61737476,3030.5,3029.1,3.8765739]
[1769611020084,3.61737476,3030.5,3029.2,3.8765739]
[1769611020291,3.61737476,3030.3,3029.0,3.8765739]
[1769611021597,3.61737476,3030.0,3028.9,3.8765739]
[1769611021810,0.54009665,3029.3,3027.7,3.63698831]
[1769611021992,1.57248739,3029.6,3027.7,3.63698831]
[1769611022299,0.16525,3030.0,3028.1,3.63698831]
[1769611022300,0.54005665,3030.0,3028.1,3.63698831]
[1769611022498,2.98199839,3029.9,3028.1,3.63698831]
[1769611022694,0.54005665,3030.0,3028.1,3.63698831]
[1769611022898,0.3637581,3029.8,3028.1,3.64098665]
[1769611023098,3.34580134,3029.7,3028.1,3.64098665]
[1769611023399,0.3637581,3029.7,3028.1,3.64098665]
[1769611024003,0.16929299,3030.0,3028.1,3.64098665]
[1769611024303,40.8,3029.9,3028.2,3.80233831]
[1769611024505,0.00404299,3030.0,3028.4,8.48270569]
[1769611024693,0.00404299,3030.0,3028.8,3.80230831]
[1769611024898,1e-08,3030.0,3028.8,3.80230831]
[1769611025600,1e-08,3030.0,3028.8,3.63698831]
[1769611029796,1e-08,3030.0,3028.4,3.63698831]
[1769611029797,0.16526,3029.9,3028.4,3.63698831]
[1769611030002,0.58313938,3029.8,3028.4,3.63698831]
[1769611030395,41.38313938,3029.7,3028.4,3.63698831]
[1769611030901,0.59169173,3029.2,3027.7,3.63698831]
[1769611031104,42.37318616,3029.7,3027.3,3.63698831]
[1769611031105,0.16531,3028.9,3027.3,3.63698831]
[1769611031498,0.59170173,3028.9,3027.3,3.63698831]
[1769611032001,0.42639173,3028.8,3027.3,3.64032531]
[1769611032594,0.42639173,3028.6,3027.3,0.003337]
[1769611032799,0.59173173,3028.3,3026.9,6.94198831]
[1769611033195,0.59173173,3028.3,3026.9,3.63698831]
[1769611033796,0.45094874,3028.2,3026.9,3.64111002]
[1769611034008,0.45094874,3028.2,3026.9,0.00412171]
[1769611034209,0.45094874,3028.2,3026.9,3.64111002]
[1769611034406,0.45094874,3028.2,3026.9,0.00412171]
[1769611034607,0.61629874,3028.2,3026.9,0.00412171]
[1769611034806,0.44682703,3027.7,3026.0,3.63698831]
[1769611035403,0.16539,3027.5,3026.0,3.63698831]
[1769611035700,0.43633558,3027.7,3025.6,3.63698831]
[1769611035903,40.8,3027.4,3025.6,3.63698831]
[1769611037010,40.80237464,3027.4,3025.6,3.63965802]
[1769611037411,41.33857822,3027.4,3025.6,3.63965802]
[1769611037716,40.80237464,3027.4,3025.6,3.63965802]
[1769611040911,40.80237464,3027.4,3025.9,3.63698831]
[1769611041212,0.00237464,3027.4,3025.9,3.63698831]
[1769611042814,0.00237464,3027.4,3025.9,3.80245831]
[1769611043012,0.73749895,3028.4,3026.2,3.80244831]
[1769611043411,0.73749895,3028.2,3026.2,3.80244831]
[1769611043912,0.74162702,3028.2,3026.2,3.80244831]
[1769611044815,0.74162702,3028.2,3026.2,3.63698831]
[1769611045613,0.69132408,3027.8,3026.2,3.63698831]
[1769611046016,0.00412807,3028.2,3026.2,3.63698831]
[1769611046323,0.00412807,3028.2,3026.4,3.73194068]
[1769611046618,0.00412807,3028.2,3026.9,3.65921678]
[1769611047518,0.00412807,3028.2,3026.9,3.49379678]
[1769611047717,40.8,3028.9,3027.3,3.49379678]
[1769611047924,3.307,3029.5,3027.5,3.49379678]
[1769611048321,40.8,3029.4,3027.5,3.49379678]
[1769611048517,0.72949653,3029.3,3027.5,3.49379678]
[1769611049026,0.73225716,3029.3,3027.5,3.49379678]
[1769611051628,0.00276063,3029.3,3027.5,3.49379678]
[1769611051832,0.00276063,3029.3,3027.8,3.49379678]
[1769611052138,0.00276063,3029.3,3027.8,3.49751958]
[1769611052638,3.307,3030.3,3028.1,3.49379678]
[1769611052939,40.8,3030.2,3028.1,3.49379678]
[1769611053139,40.8,3030.2,3028.4,3.49379678]
[1769611053339,41.53466513,3030.2,3028.4,3.49379678]
[1769611053737,41.53818666,3030.2,3028.4,3.49379678]
[1769611054441,0.73466513,3030.1,3028.4,3.49379678]
[1769611055637,0.91673318,3030.0,3028.4,3.49379678]
[1769611055839,0.16525,3030.0,3028.4,3.49379678]
[1769611056130,0.75148318,3030.0,3028.4,3.49379678]
[1769611056336,0.75148318,3030.1,3028.4,3.49379678]
[1769611056542,0.91673318,3030.1,3028.4,3.49379678]
[1769611057934,0.7372865,3029.8,3028.4,3.49379678]
[1769611058136,0.7372865,3029.8,3028.0,3.49379678]
[1769611059046,0.7372865,3029.8,3027.8,0.0037228]
[1769611059047,0.75280958,3029.5,3027.8,0.0037228]
[1769611059244,0.75280958,3029.3,3027.8,0.0037228]
[1769611059443,40.8,3029.2,3027.8,3.49751958]
[1769611060735,6.48,3029.8,3027.8,3.49751958]
[1769611060938,7.39805958,3030.1,3027.8,3.49751958]
[1769611061138,6.48,3030.1,3028.2,3.49379678]
[1769611061339,47.28,3030.1,3028.2,3.49379678]
[1769611061634,48.01181982,3030.1,3028.2,3.49379678]
[1769611062140,0.73181982,3029.6,3028.2,3.49379678]
[1769611062339,0.89710982,3029.2,3027.8,3.49751958]
[1769611062644,11.242,3029.7,3027.8,3.49751958]
[1769611062645,0.89712982,3029.0,3027.8,3.49751958]
[1769611062842,0.89712982,3029.0,3027.8,0.0037228]
[1769611063044,0.89712982,3029.0,3027.4,3.49379678]
[1769611063239,0.71950474,3028.8,3027.4,3.49379678]
[1769611064043,0.71950474,3028.8,3027.4,3.4978516]
[1769611064345,0.16531,3028.9,3027.4,3.4978516]
[1769611064739,0.88481474,3028.9,3027.4,3.4978516]
[1769611064943,0.58530461,3028.5,3027.0,3.49379678]
[1769611065345,0.75063461,3028.5,3027.0,3.49379678]
[1769611066047,0.58530461,3028.3,3027.0,0.00302422]
[1769611066343,0.58530461,3028.2,3026.6,3.49379678]
[1769611066541,0.58530461,3027.5,3025.4,3.49379678]
[1769611066742,41.38530461,3027.4,3025.4,3.49379678]
[1769611066943,0.58532625,3027.3,3025.4,3.49379678]
[1769611067343,0.5881119,3027.3,3025.4,3.49690494]
[1769611067740,0.7535119,3027.3,3025.4,3.49690494]
[1769611067940,0.58532625,3027.2,3025.4,3.49690494]
[1769611068340,0.00278565,3027.3,3025.4,3.49690494]
[1769611068943,0.00278565,3027.3,3025.6,3.49379678]
[1769611069146,0.00278565,3027.3,3025.6,3.65928678]
[1769611069342,8.09733,3028.6,3026.2,3.49379678]
[1769611069547,8.09733,3028.6,3026.4,3.49379678]
[1769611069748,40.8,3028.5,3026.4,3.49379678]
[1769611070044,40.8,3028.5,3026.9,3.49379678]
[1769611070247,40.80334164,3028.5,3026.9,3.49379678]
[1769611071349,0.65930624,3028.2,3026.8,0.001]
[1769611071653,0.65930624,3028.0,3026.5,3.49379678]
[1769611071951,0.65930624,3027.7,3025.6,3.49379678]
[1769611072145,8.78068624,3027.6,3025.6,3.49379678]
[1769611072345,0.65930624,3027.5,3025.6,3.49379678]
[1769611073854,0.75209022,3027.2,3025.6,3.49379678]
[1769611074155,0.91750022,3027.2,3025.6,3.49379678]
[1769611075450,0.75623371,3026.7,3025.4,0.00310816]
[1769611076154,0.75623371,3026.6,3024.2,3.63024362]
[1769611076548,0.16545,3026.3,3024.2,3.63024362]
[1769611076749,0.92168371,3026.3,3024.2,3.63024362]
[1769611077052,0.92582318,3026.3,3024.2,3.63440462]
[1769611079449,0.16958947,3026.3,3024.2,3.63440462]
[1769611079747,0.74567849,3026.3,3024.2,3.63440462]
[1769611080055,0.16551,3025.3,3023.8,3.63024362]
[1769611080551,0.16547,3026.0,3023.8,3.63024362]
[1769611080754,40.8,3025.9,3024.2,3.63024362]
[1769611080943,40.8,3025.9,3024.2,3.79580362]
[1769611081246,0.74714632,3025.4,3024.2,3.63369437]
[1769611081446,0.74714632,3025.4,3023.8,3.63024362]
[1769611081641,40.8,3025.9,3023.8,3.63024362]
[1769611081844,40.8,3025.9,3024.2,3.63024362]
[1769611082045,40.8,3025.9,3024.2,3.79581362]
[1769611082449,0.00413947,3026.3,3024.6,3.79578362]
[1769611082645,3.309,3027.3,3025.4,0.1655]
[1769611082843,40.8,3027.2,3025.5,3.63024362]
[1769611083756,40.8028013,3027.2,3025.5,3.79573362]
[1769611084860,0.0028013,3027.2,3025.5,3.79573362]
[1769611085061,0.5,3027.0,3025.5,3.79573362]
[1769611086057,0.5,3027.0,3026.0,3.63024362]
[1769611086365,1.39384034,3028.2,3026.0,3.63024362]
[1769611086664,40.8,3028.0,3026.0,3.63024362]
[1769611086863,3.309,3028.5,3026.5,3.63024362]
[1769611087163,1.39664164,3028.4,3026.5,3.79568362]
[1769611087354,40.8,3028.3,3026.5,3.79912274]
[1769611087551,40.8,3028.3,3026.5,3.63368274]
[1769611088458,1.51199601,3028.2,3026.5,3.63368274]
[1769611089266,1.67734601,3028.2,3026.5,3.63368274]
[1769611090362,1.51199601,3028.2,3026.5,3.63368274]
[1769611090866,1.69569999,3028.0,3026.5,3.63368274]
[1769611091052,42.33033999,3028.3,3026.5,3.63368274]
[1769611091758,40.8,3028.3,3026.8,3.63024362]
[1769611091961,40.8,3028.3,3026.8,3.79566362]
[1769611092158,0.00292967,3028.4,3026.8,3.79566362]
[1769611092553,40.8,3028.3,3026.8,3.63024362]
[1769611092757,1.56241459,3028.2,3026.8,3.63024362]
[1769611093858,40.8,3028.3,3026.8,3.63024362]
[1769611094060,1.57100054,3028.2,3026.8,3.63024362]
[1769611095071,40.8,3028.3,3026.8,3.63024362]
[1769611096758,0.00292967,3028.4,3026.8,3.63024362]
[1769611097161,40.80292967,3028.4,3026.8,3.63024362]
[1769611097361,0.00292967,3028.4,3027.0,3.63024362]
[1769611099268,1.54368635,3028.4,3027.0,3.63024362]
[1769611100868,1.53330769,3028.1,3026.6,3.63024362]
[1769611101057,0.00292967,3028.4,3026.6,3.63024362]
[1769611101262,0.00292967,3028.4,3026.6,3.79568362]
[1769611101658,0.00292967,3028.4,3026.8,3.63024362]
[1769611101867,0.00292967,3028.4,3027.0,3.79565362]
[1769611102063,0.00292967,3028.4,3027.4,3.63024362]
[1769611102266,40.8,3028.9,3027.5,0.16539]
[1769611102463,1.57119395,3030.1,3028.0,3.63024362]
[1769611102864,1.57119395,3029.7,3028.0,3.63024362]
[1769611103260,0.002782,3029.7,3028.0,3.63024362]
[1769611103470,1.57397595,3029.7,3028.0,3.63024362]
[1769611104870,3.17798563,3028.7,3027.3,3.53694828]
[1769611105470,0.16531,3029.0,3027.3,3.53694828]
[1769611105471,0.16527,3029.6,3027.4,0.16539]
[1769611105667,1.60668155,3029.7,3027.3,1.57508608]
[1769611105862,0.002782,3029.7,3027.8,0.16537]
[1769611106068,1.57615603,3029.7,3027.8,0.16537]
[1769611106273,1.57337403,3029.6,3027.4,3.307]
[1769611106577,1.73865403,3029.6,3027.1,3.47241]
[1769611106771,1.73775489,3029.4,3027.1,3.47241]
[1769611106971,1.73775489,3029.4,3027.2,3.53003867]
[1769611107376,1.73775489,3029.4,3027.2,3.69543867]
[1769611108272,0.002782,3029.7,3027.7,3.53003867]
[1769611108478,1.59968796,3029.7,3027.7,3.53003867]
[1769611108674,1.59690596,3029.6,3027.7,3.53003867]
[1769611110478,0.002782,3029.7,3027.7,3.53003867]
[1769611110880,0.002782,3029.7,3028.1,3.53003867]
[1769611111074,0.002782,3029.7,3028.1,3.69538867]
[1769611111273,3.12233334,3029.7,3028.1,3.53003867]
[1769611112379,1.55999154,3029.6,3028.1,3.53003867]
[1769611112583,1.72526154,3029.6,3028.1,3.53003867]
[1769611113471,0.002782,3029.7,3028.1,3.53003867]
[1769611113867,1.56277354,3029.7,3028.1,3.53003867]
[1769611114079,1.55389999,3029.6,3028.1,3.53003867]
[1769611114779,1.71916999,3029.6,3028.1,3.53003867]
[1769611115678,0.002782,3029.7,3028.1,3.53003867]
[1769611116779,1.55517612,3029.7,3028.1,3.53003867]
[1769611117179,0.002782,3029.7,3028.1,3.53003867]
[1769611117380,0.002782,3029.7,3028.1,3.69538867]
[1769611118383,1.55654692,3029.7,3028.1,3.69538867]
[1769611118683,1.55654692,3029.7,3028.1,3.53003867]
[1769611120078,0.002782,3029.7,3028.1,3.53003867]
[1769611120284,0.002782,3029.7,3028.3,3.53003867]
[1769611120881,0.002782,3029.7,3028.5,3.53003867]
[1769611124488,40.8,3030.0,3028.8,3.53003867]
[1769611125590,40.80255096,3030.0,3028.8,3.53319196]
[1769611125790,0.00255096,3030.0,3028.8,3.53319196]
[1769611127492,0.16521,3030.8,3029.0,3.53003867]
[1769611128001,42.27025427,3030.7,3029.0,3.53003867]
[1769611128396,1.47025427,3030.6,3029.0,3.53003867]
[1769611128698,1.47265709,3030.6,3029.0,3.53003867]
[1769611130593,1.47997558,3030.4,3029.0,3.53003867]
[1769611130799,1.47997558,3030.2,3029.0,3.53003867]
[1769611130988,1.47997558,3030.1,3028.8,0.00315329]
[1769611131187,3.17484273,3030.0,3028.8,3.53319196]
[1769611131388,0.16526,3030.0,3028.8,3.53319196]
[1769611132093,1.48125265,3029.8,3028.0,4.84571738]
[1769611132298,3.00961542,3029.9,3027.4,0.16539]
[1769611132299,1.48125265,3029.6,3028.1,3.53003867]
[1769611132491,1.48125265,3029.1,3027.7,3.53003867]